[Event "Kvibergspelen September 2019"]
[Site "Prioritet Serneke Arena, Krutvagen 2, Gothenburg, Sweden"]
[Date "2019.09.29"]
[Round "7.9"]
[White "Cramling, Pia"]
[Black "Torngren, Gustav"]
[Result "1/2-1/2"]
[TimeControl "15 minutes + 5 seconds per move from move one (Round 1 - 4) / 90 minutes + 30 seconds per move from move one (Round 5 - 8)"]
[WhiteTitle "GM"]
[BlackTitle "CM"]
[WhiteFideId "1700030"]
[BlackFideId "1728970"]
[WhiteElo "2487"]
[BlackElo "2227"]

1. d4 {[%clk 01:28:56]} {[%emt 00:02:03]} e6 {[%clk 01:30:45]} {[%emt
00:00:15]} 2. Nf3 {[%clk 01:29:03]} {[%emt 00:00:23]} Nf6 {[%clk 01:31:02]}
{[%emt 00:00:13]} 3. c4 {[%clk 01:29:04]} {[%emt 00:00:30]} d5 {[%clk
01:31:18]} {[%emt 00:00:14]} 4. Bg5 {[%clk 01:26:23]} {[%emt 00:03:10]} h6
{[%clk 01:24:27]} {[%emt 00:07:22]} 5. Bxf6 {[%clk 01:24:49]} {[%emt 00:02:04]}
Qxf6 {[%clk 01:24:34]} {[%emt 00:00:23]} 6. Qb3 {[%clk 01:23:35]} {[%emt
00:01:44]} c6 {[%clk 01:22:09]} {[%emt 00:02:55]} 7. g3 {[%clk 01:20:20]}
{[%emt 00:03:44]} Bd6 {[%clk 01:16:44]} {[%emt 00:05:56]} 8. Nbd2 {[%clk
01:20:20]} {[%emt 00:00:31]} Nd7 {[%clk 01:06:06]} {[%emt 00:11:09]} 9. Bg2
{[%clk 01:18:46]} {[%emt 00:02:03]} O-O {[%clk 01:03:12]} {[%emt 00:03:25]} 10.
Rd1 {[%clk 01:12:39]} {[%emt 00:06:36]} Bc7 {[%clk 00:51:52]} {[%emt 00:11:51]}
11. O-O {[%clk 01:11:17]} {[%emt 00:01:51]} Re8 {[%clk 00:49:02]} {[%emt
00:03:20]} 12. e4 {[%clk 01:06:52]} {[%emt 00:04:54]} dxc4 {[%clk 00:47:55]}
{[%emt 00:01:38]} 13. Nxc4 {[%clk 01:06:46]} {[%emt 00:00:36]} e5 {[%clk
00:47:45]} {[%emt 00:00:40]} 14. dxe5 {[%clk 00:57:47]} {[%emt 00:09:29]} Nxe5
{[%clk 00:47:48]} {[%emt 00:00:27]} 15. Nfxe5 {[%clk 00:58:03]} {[%emt
00:00:14]} Bxe5 {[%clk 00:48:02]} {[%emt 00:00:16]} 16. f4 {[%clk 00:48:03]}
{[%emt 00:10:30]} Bc7 {[%clk 00:42:26]} {[%emt 00:06:06]} 17. e5 {[%clk
00:47:30]} {[%emt 00:01:02]} Qe7 {[%clk 00:42:26]} {[%emt 00:00:30]} 18. Nd6
{[%clk 00:38:37]} {[%emt 00:09:23]} Rd8 {[%clk 00:39:11]} {[%emt 00:03:46]} 19.
Qa3 {[%clk 00:34:59]} {[%emt 00:04:07]} Bg4 {[%clk 00:28:11]} {[%emt 00:11:31]}
20. Rde1 {[%clk 00:24:48]} {[%emt 00:10:40]} Rd7 {[%clk 00:20:49]} {[%emt
00:07:52]} 21. h3 {[%clk 00:12:32]} {[%emt 00:12:45]} Be6 {[%clk 00:20:38]}
{[%emt 00:00:41]} 22. f5 {[%clk 00:10:20]} {[%emt 00:02:43]} Bd5 {[%clk
00:19:03]} {[%emt 00:02:05]} 23. Bxd5 {[%clk 00:07:35]} {[%emt 00:03:15]} cxd5
{[%clk 00:19:14]} {[%emt 00:00:19]} 24. f6 {[%clk 00:07:07]} {[%emt 00:00:57]}
Bxd6 {[%clk 00:08:27]} {[%emt 00:11:19]} 25. exd6 {[%clk 00:07:29]} {[%emt
00:00:08]} Qxd6 {[%clk 00:08:50]} {[%emt 00:00:07]} 26. Qxd6 {[%clk 00:07:54]}
{[%emt 00:00:05]} Rxd6 {[%clk 00:09:17]} {[%emt 00:00:03]} 27. Re7 {[%clk
00:08:15]} {[%emt 00:00:08]} g6 {[%clk 00:09:25]} {[%emt 00:00:23]} 28. Rxb7
{[%clk 00:08:31]} {[%emt 00:00:15]} d4 {[%clk 00:09:42]} {[%emt 00:00:13]} 29.
Rd1 {[%clk 00:06:38]} {[%emt 00:02:22]} Rc8 {[%clk 00:07:02]} {[%emt 00:03:11]}
30. Rb4 {[%clk 00:01:54]} {[%emt 00:05:14]} d3 {[%clk 00:06:40]} {[%emt
00:00:52]} 31. Rb3 {[%clk 00:02:15]} {[%emt 00:00:08]} d2 {[%clk 00:05:26]}
{[%emt 00:01:45]} 32. Kf2 {[%clk 00:02:40]} {[%emt 00:00:04]} Rcd8 {[%clk
00:04:30]} {[%emt 00:01:26]} 33. Ke2 {[%clk 00:02:09]} {[%emt 00:01:01]} g5
{[%clk 00:04:36]} {[%emt 00:00:24]} 34. Re3 {[%clk 00:02:06]} {[%emt 00:00:33]}
a6 {[%clk 00:04:16]} {[%emt 00:00:51]} 35. b4 {[%clk 00:01:22]} {[%emt
00:01:13]} Kh7 {[%clk 00:04:21]} {[%emt 00:00:25]} 36. a4 {[%clk 00:01:13]}
{[%emt 00:00:39]} Kg6 {[%clk 00:04:26]} {[%emt 00:00:25]} 37. Rf3 {[%clk
00:01:27]} {[%emt 00:00:15]} Re6+ {[%clk 00:03:47]} {[%emt 00:01:10]} 38. Re3
{[%clk 00:01:27]} {[%emt 00:00:30]} Red6 {[%clk 00:04:04]} {[%emt 00:00:14]} 39.
Rf3 {[%clk 00:01:48]} {[%emt 00:00:06]} Rd4 {[%clk 00:02:56]} {[%emt 00:01:40]}
40. Rb3 {[%clk 00:02:04]} {[%emt 00:00:14]} Re8+ {[%clk 00:02:24]} {[%emt
00:01:03]} 41. Kf2 {[%clk 00:02:18]} {[%emt 00:00:14]} Rd6 {[%clk 00:02:11]}
{[%emt 00:00:45]} 42. Re3 {[%clk 00:00:44]} {[%emt 00:02:03]} Rb8 {[%clk
00:02:04]} {[%emt 00:00:37]} 43. Re4 {[%clk 00:00:54]} {[%emt 00:00:20]} Rc8
{[%clk 00:01:46]} {[%emt 00:00:49]} 44. Ke2 {[%clk 00:01:08]} {[%emt 00:00:15]}
Rcd8 {[%clk 00:01:15]} {[%emt 00:01:01]} 45. b5 {[%clk 00:00:46]} {[%emt
00:00:51]} axb5 {[%clk 00:00:57]} {[%emt 00:00:49]} 46. axb5 {[%clk 00:01:15]}
{[%emt 00:00:01]} Kxf6 {[%clk 00:00:58]} {[%emt 00:00:29]} 47. Rb4 {[%clk
00:01:18]} {[%emt 00:00:26]} Re8+ {[%clk 00:01:14]} {[%emt 00:00:15]} 48. Kf2
{[%clk 00:01:45]} {[%emt 00:00:03]} Kg6 {[%clk 00:01:17]} {[%emt 00:00:27]} 49.
Rb3 {[%clk 00:02:07]} {[%emt 00:00:08]} Red8 {[%clk 00:00:56]} {[%emt
00:00:51]} 50. g4 {[%clk 00:01:14]} {[%emt 00:01:24]} Rb6 {[%clk 00:00:59]}
{[%emt 00:00:27]} 51. Ke2 {[%clk 00:01:04]} {[%emt 00:00:39]} Re6+ {[%clk
00:00:33]} {[%emt 00:00:58]} 52. Kf2 {[%clk 00:01:03]} {[%emt 00:00:31]} Rb6
{[%clk 00:00:59]} {[%emt 00:00:04]} 53. Ke2 {[%clk 00:01:24]} {[%emt 00:00:08]}
Rd5 {[%clk 00:00:39]} {[%emt 00:00:51]} 54. Rxd2 {[%clk 00:01:42]} {[%emt
00:00:12]} Rdxb5 {[%clk 00:00:51]} {[%emt 00:00:18]} 55. Rxb5 {[%clk 00:01:34]}
{[%emt 00:00:38]} Rxb5 {[%clk 00:01:19]} {[%emt 00:00:02]} 56. Rd6+ {[%clk
00:01:48]} {[%emt 00:00:15]} f6 {[%clk 00:01:44]} {[%emt 00:00:06]} 57. Kf3
{[%clk 00:02:10]} {[%emt 00:00:07]} Rb3+ {[%clk 00:02:06]} {[%emt 00:00:09]} 58.
Kg2 {[%clk 00:02:34]} {[%emt 00:00:05]} Rb2+ {[%clk 00:02:28]} {[%emt
00:00:09]} 59. Kg3 {[%clk 00:02:56]} {[%emt 00:00:08]} Rb3+ {[%clk 00:02:54]}
{[%emt 00:00:04]} 60. Kg2 {[%clk 00:03:22]} {[%emt 00:00:04]} Rb4 {[%clk
00:03:17]} {[%emt 00:00:07]} 61. Kg3 {[%clk 00:02:54]} {[%emt 00:00:56]} Ra4
{[%clk 00:03:32]} {[%emt 00:00:16]} 62. Rb6 {[%clk 00:03:03]} {[%emt 00:00:21]}
Ra1 {[%clk 00:03:48]} {[%emt 00:00:14]} 63. Kg2 {[%clk 00:02:54]} {[%emt
00:00:39]} Ra2+ {[%clk 00:03:50]} {[%emt 00:00:29]} 64. Kg3 {[%clk 00:03:18]}
{[%emt 00:00:05]} Ra3+ {[%clk 00:04:15]} {[%emt 00:00:06]} 65. Kg2 {[%clk
00:03:43]} {[%emt 00:00:04]} Rc3 {[%clk 00:04:29]} {[%emt 00:00:16]} 66. Ra6
{[%clk 00:04:04]} {[%emt 00:00:08]} Rb3 {[%clk 00:04:53]} {[%emt 00:00:07]} 67.
Rc6 {[%clk 00:04:28]} {[%emt 00:00:06]} Rb8 {[%clk 00:04:44]} {[%emt 00:00:39]}
68. Kg3 {[%clk 00:04:39]} {[%emt 00:00:18]} Ra8 {[%clk 00:05:05]} {[%emt
00:00:10]} 69. Rb6 {[%clk 00:05:03]} {[%emt 00:00:06]} Ra7 {[%clk 00:04:05]}
{[%emt 00:01:31]} 70. Rc6 {[%clk 00:05:24]} {[%emt 00:00:07]} Rd7 {[%clk
00:03:51]} {[%emt 00:00:45]} 71. Ra6 {[%clk 00:05:46]} {[%emt 00:00:08]} Rd3+
{[%clk 00:04:06]} {[%emt 00:00:15]} 72. Kg2 {[%clk 00:06:10]} {[%emt 00:00:05]}
Rd4 {[%clk 00:04:30]} {[%emt 00:00:07]} 73. Kg3 {[%clk 00:06:10]} {[%emt
00:00:30]} Rb4 {[%clk 00:04:46]} {[%emt 00:00:15]} 74. Rc6 {[%clk 00:06:22]}
{[%emt 00:00:17]} Rb7 {[%clk 00:04:41]} {[%emt 00:00:36]} 75. Ra6 {[%clk
00:06:38]} {[%emt 00:00:12]} Rh7 {[%clk 00:03:46]} {[%emt 00:01:26]} 76. h4
{[%clk 00:05:32]} {[%emt 00:01:35]} h5 {[%clk 00:03:08]} {[%emt 00:01:08]} 77.
hxg5 {[%clk 00:04:17]} {[%emt 00:01:45]} Kxg5 {[%clk 00:02:38]} {[%emt
00:01:01]} 78. Ra5+ {[%clk 00:04:33]} {[%emt 00:00:14]} Kg6 {[%clk 00:02:55]}
{[%emt 00:00:13]} 79. gxh5+ {[%clk 00:04:51]} {[%emt 00:00:12]} Rxh5 {[%clk
00:03:16]} {[%emt 00:00:09]} 80. Rxh5 {[%clk 00:04:53]} {[%emt 00:00:28]} Kxh5
{[%clk 00:03:40]} {[%emt 00:00:07]} 81. Kf4 {[%clk 00:05:21]} {[%emt 00:00:02]}
Kg6 {[%clk 00:04:08]} {[%emt 00:00:02]} 82. Kg4 {[%clk 00:05:45]} {[%emt
00:00:05]} Kg7 {[%clk 00:04:21]} {[%emt 00:00:17]} 83. Kf4 {[%clk 00:06:06]}
{[%emt 00:00:08]} Kf7 {[%clk 00:04:47]} {[%emt 00:00:05]} 84. Kf5 {[%clk
00:06:27]} {[%emt 00:00:08]} Ke7 {[%clk 00:05:13]} {[%emt 00:00:04]} 85. Kf4
{[%clk 00:06:36]} {[%emt 00:00:16]} Kd6 {[%clk 00:05:39]} {[%emt 00:00:08]} 86.
Kf5 {[%clk 00:07:01]} {[%emt 00:00:05]} Ke7 {[%clk 00:06:06]} {[%emt 00:00:04]}
87. Kf4 {[%clk 00:07:25]} {[%emt 00:00:04]} Ke6 {[%clk 00:06:33]} {[%emt
00:00:04]} 88. Ke4 {[%clk 00:07:51]} {[%emt 00:00:04]} f5+ {[%clk 00:06:57]}
{[%emt 00:00:07]} 89. Kf4 {[%clk 00:08:16]} {[%emt 00:00:04]} Kf6 {[%clk
00:07:22]} {[%emt 00:00:06]} 90. Kf3 {[%clk 00:08:42]} {[%emt 00:00:04]} Ke5
{[%clk 00:07:46]} {[%emt 00:00:06]} 91. Ke3 {[%clk 00:09:08]} {[%emt 00:00:03]}
Kd6 {[%clk 00:08:10]} {[%emt 00:00:07]} 92. Kf4 {[%clk 00:09:31]} {[%emt
00:00:06]} Ke6 {[%clk 00:08:37]} {[%emt 00:00:04]} 93. Kf3 {[%clk 00:09:41]}
{[%emt 00:00:18]} Ke5 {[%clk 00:09:05]} {[%emt 00:00:02]} 94. Ke3 {[%clk
00:10:04]} {[%emt 00:00:06]} f4+ {[%clk 00:09:32]} {[%emt 00:00:05]} 95. Kf3
{[%clk 00:10:29]} {[%emt 00:00:03]} Kf5 {[%clk 00:09:58]} {[%emt 00:00:05]} 96.
Kf2 {[%clk 00:10:54]} {[%emt 00:00:03]} Kg4 {[%clk 00:10:23]} {[%emt 00:00:06]}
97. Kg2 {[%clk 00:11:17]} {[%emt 00:00:06]} f3+ {[%clk 00:10:42]} {[%emt
00:00:13]} 98. Kf2 {[%clk 00:11:42]} {[%emt 00:00:04]} Kf4 {[%clk 00:10:44]}
{[%emt 00:00:29]} 99. Kf1 {[%clk 00:12:06]} {[%emt 00:00:05]} Ke4 {[%clk
00:11:08]} {[%emt 00:00:07]} 100. Kf2 {[%clk 00:12:28]} {[%emt 00:00:07]} Kf4
{[%clk 00:11:33]} {[%emt 00:00:06]} 101. Kf1 {[%clk 00:12:53]} {[%emt
00:00:03]} Kg5 {[%clk 00:11:56]} {[%emt 00:00:08]} 102. Kf2 {[%clk 00:12:46]}
{[%emt 00:00:33]} Kg4 {[%clk 00:12:22]} {[%emt 00:00:09]} 103. Kf1 {[%clk
00:13:02]} {[%emt 00:00:11]} Kg3 {[%clk 00:12:48]} {[%emt 00:00:06]} 104. Kg1
{[%clk 00:13:26]} {[%emt 00:00:05]} Kf4 {[%clk 00:13:10]} {[%emt 00:00:09]} 105.
Kf2 {[%clk 00:13:41]} {[%emt 00:00:13]} Ke4 {[%clk 00:13:38]} {[%emt 00:00:03]}
106. Kf1 {[%clk 00:13:41]} {[%emt 00:00:27]} Ke3 {[%clk 00:14:06]} {[%emt
00:00:07]} 107. Ke1 {[%clk 00:13:54]} {[%emt 00:00:15]} f2+ {[%clk 00:14:32]}
{[%emt 00:00:04]} 108. Kf1 {[%clk 00:14:20]} {[%emt 00:00:04]} Kf3 {[%clk
00:14:59]} {[%emt 00:00:04]} 1/2-1/2

[Event "Kvibergspelen September 2019"]
[Site "Prioritet Serneke Arena, Krutvagen 2, Gothenburg, Sweden"]
[Date "2019.09.29"]
[Round "7.10"]
[White "Lindberg, Bengt"]
[Black "Lindbol, Aleksander"]
[Result "1-0"]
[TimeControl "15 minutes + 5 seconds per move from move one (Round 1 - 4) / 90 minutes + 30 seconds per move from move one (Round 5 - 8)"]
[WhiteTitle "IM"]
[WhiteFideId "1700359"]
[BlackFideId "1520644"]
[WhiteElo "2397"]
[BlackElo "2216"]

1. e4 {[%clk 01:30:50]} {[%emt 00:00:09]} c5 {[%clk 01:30:36]} {[%emt
00:00:24]} 2. Nf3 {[%clk 01:31:09]} {[%emt 00:00:11]} Nc6 {[%clk 01:30:57]}
{[%emt 00:00:10]} 3. d4 {[%clk 01:31:34]} {[%emt 00:00:05]} cxd4 {[%clk
01:31:22]} {[%emt 00:00:06]} 4. Nxd4 {[%clk 01:32:01]} {[%emt 00:00:03]} Nf6
{[%clk 01:31:44]} {[%emt 00:00:07]} 5. Nc3 {[%clk 01:32:26]} {[%emt 00:00:05]}
e5 {[%clk 01:32:08]} {[%emt 00:00:06]} 6. Ndb5 {[%clk 01:32:51]} {[%emt
00:00:05]} d6 {[%clk 01:32:29]} {[%emt 00:00:08]} 7. Bg5 {[%clk 01:33:17]}
{[%emt 00:00:05]} a6 {[%clk 01:32:53]} {[%emt 00:00:06]} 8. Na3 {[%clk
01:33:44]} {[%emt 00:00:04]} b5 {[%clk 01:33:18]} {[%emt 00:00:05]} 9. Nd5
{[%clk 01:34:07]} {[%emt 00:00:07]} Be7 {[%clk 01:33:39]} {[%emt 00:00:08]} 10.
Bxf6 {[%clk 01:34:31]} {[%emt 00:00:07]} Bxf6 {[%clk 01:34:03]} {[%emt
00:00:06]} 11. c4 {[%clk 01:34:47]} {[%emt 00:00:13]} b4 {[%clk 01:34:18]}
{[%emt 00:00:16]} 12. Nc2 {[%clk 01:35:12]} {[%emt 00:00:05]} O-O {[%clk
01:34:39]} {[%emt 00:00:10]} 13. g3 {[%clk 01:35:29]} {[%emt 00:00:12]} Bg5
{[%clk 01:34:29]} {[%emt 00:00:40]} 14. Bg2 {[%clk 01:35:31]} {[%emt 00:00:28]}
a5 {[%clk 01:34:11]} {[%emt 00:00:49]} 15. O-O {[%clk 01:35:50]} {[%emt
00:00:10]} Be6 {[%clk 01:32:13]} {[%emt 00:02:29]} 16. Kh1 {[%clk 01:35:49]}
{[%emt 00:00:29]} Bh6 {[%clk 01:24:33]} {[%emt 00:08:12]} 17. f4 {[%clk
01:32:53]} {[%emt 00:03:25]} exf4 {[%clk 01:10:25]} {[%emt 00:14:39]} 18. gxf4
{[%clk 01:33:09]} {[%emt 00:00:14]} Rc8 {[%clk 01:04:34]} {[%emt 00:06:21]} 19.
Nce3 {[%clk 01:21:46]} {[%emt 00:11:52]} Ne7 {[%clk 00:56:20]} {[%emt
00:08:45]} 20. Qh5 {[%clk 01:04:54]} {[%emt 00:17:21]} Rc5 {[%clk 00:46:08]}
{[%emt 00:10:44]} 21. Rae1 {[%clk 00:54:49]} {[%emt 00:10:34]} Kh8 {[%clk
00:43:27]} {[%emt 00:03:12]} 22. b3 {[%clk 00:51:25]} {[%emt 00:03:53]} Ng8
{[%clk 00:40:30]} {[%emt 00:03:28]} 23. Qf3 {[%clk 00:45:11]} {[%emt 00:06:43]}
Qh4 {[%clk 00:36:50]} {[%emt 00:04:10]} 24. Qg3 {[%clk 00:42:10]} {[%emt
00:03:31]} Qd8 {[%clk 00:34:31]} {[%emt 00:02:50]} 25. Rd1 {[%clk 00:40:46]}
{[%emt 00:01:53]} Ne7 {[%clk 00:32:56]} {[%emt 00:02:06]} 26. Nxe7 {[%clk
00:38:50]} {[%emt 00:02:27]} Qxe7 {[%clk 00:33:06]} {[%emt 00:00:19]} 27. f5
{[%clk 00:38:58]} {[%emt 00:00:22]} Bc8 {[%clk 00:25:03]} {[%emt 00:08:33]} 28.
Ng4 {[%clk 00:38:00]} {[%emt 00:01:26]} Rd8 {[%clk 00:25:13]} {[%emt 00:00:21]}
29. e5 {[%clk 00:27:19]} {[%emt 00:11:11]} Bg5 {[%clk 00:18:41]} {[%emt
00:07:02]} 30. exd6 {[%clk 00:25:35]} {[%emt 00:02:14]} Qf8 {[%clk 00:19:05]}
{[%emt 00:00:05]} 31. Ne5 {[%clk 00:21:31]} {[%emt 00:04:33]} Bf6 {[%clk
00:17:54]} {[%emt 00:01:42]} 32. Nc6 {[%clk 00:21:50]} {[%emt 00:00:12]} Rd7
{[%clk 00:17:22]} {[%emt 00:01:03]} 33. Qe3 {[%clk 00:21:47]} {[%emt 00:00:31]}
1-0

[Event "Kvibergspelen September 2019"]
[Site "Prioritet Serneke Arena, Krutvagen 2, Gothenburg, Sweden"]
[Date "2019.09.29"]
[Round "7.11"]
[White "Johansson, Gunnar"]
[Black "Bellon Lopez, Juan"]
[Result "0-1"]
[TimeControl "15 minutes + 5 seconds per move from move one (Round 1 - 4) / 90 minutes + 30 seconds per move from move one (Round 5 - 8)"]
[BlackTitle "GM"]
[WhiteFideId "1703501"]
[BlackFideId "2200031"]
[WhiteElo "2183"]
[BlackElo "2334"]

1. d4 {[%clk 01:30:56]} {[%emt 00:00:03]} Nf6 {[%clk 01:30:52]} {[%emt
00:00:09]} 2. Nf3 {[%clk 01:31:13]} {[%emt 00:00:13]} c5 {[%clk 01:30:34]}
{[%emt 00:00:48]} 3. c3 {[%clk 01:31:17]} {[%emt 00:00:26]} e6 {[%clk
01:31:03]} {[%emt 00:00:01]} 4. e3 {[%clk 01:28:20]} {[%emt 00:03:26]} a6
{[%clk 01:30:46]} {[%emt 00:00:47]} 5. Bd3 {[%clk 01:27:59]} {[%emt 00:00:51]}
d6 {[%clk 01:29:16]} {[%emt 00:01:59]} 6. O-O {[%clk 01:27:37]} {[%emt
00:00:53]} Nbd7 {[%clk 01:29:39]} {[%emt 00:00:08]} 7. e4 {[%clk 01:26:21]}
{[%emt 00:01:45]} e5 {[%clk 01:28:59]} {[%emt 00:01:10]} 8. Re1 {[%clk
01:21:24]} {[%emt 00:05:28]} g6 {[%clk 01:27:23]} {[%emt 00:02:06]} 9. a4
{[%clk 01:16:46]} {[%emt 00:05:08]} Bg7 {[%clk 01:24:18]} {[%emt 00:03:34]} 10.
dxe5 {[%clk 01:10:19]} {[%emt 00:06:58]} Nxe5 {[%clk 01:18:52]} {[%emt
00:05:55]} 11. Nxe5 {[%clk 01:01:52]} {[%emt 00:08:58]} dxe5 {[%clk 01:18:18]}
{[%emt 00:01:04]} 12. Be3 {[%clk 00:57:16]} {[%emt 00:05:06]} Qe7 {[%clk
01:12:53]} {[%emt 00:05:55]} 13. Nd2 {[%clk 00:51:08]} {[%emt 00:06:37]} Be6
{[%clk 01:11:32]} {[%emt 00:01:51]} 14. Bc4 {[%clk 00:49:34]} {[%emt 00:02:05]}
Bxc4 {[%clk 01:07:58]} {[%emt 00:04:04]} 15. Nxc4 {[%clk 00:50:01]} {[%emt
00:00:02]} Rd8 {[%clk 01:08:12]} {[%emt 00:00:15]} 16. Qc2 {[%clk 00:48:51]}
{[%emt 00:01:40]} O-O {[%clk 01:05:03]} {[%emt 00:03:41]} 17. f3 {[%clk
00:47:14]} {[%emt 00:02:07]} Qe6 {[%clk 00:59:53]} {[%emt 00:05:39]} 18. b3
{[%clk 00:42:37]} {[%emt 00:05:07]} b5 {[%clk 00:56:20]} {[%emt 00:04:03]} 19.
axb5 {[%clk 00:39:25]} {[%emt 00:03:43]} axb5 {[%clk 00:56:40]} {[%emt
00:00:10]} 20. Na3 {[%clk 00:37:46]} {[%emt 00:02:08]} c4 {[%clk 00:54:42]}
{[%emt 00:02:27]} 21. bxc4 {[%clk 00:32:16]} {[%emt 00:06:01]} bxc4 {[%clk
00:54:58]} {[%emt 00:00:14]} 22. Red1 {[%clk 00:30:08]} {[%emt 00:02:37]} Rxd1+
{[%clk 00:52:41]} {[%emt 00:02:47]} 23. Rxd1 {[%clk 00:30:20]} {[%emt
00:00:18]} Ra8 {[%clk 00:51:42]} {[%emt 00:01:27]} 24. Qb2 {[%clk 00:25:34]}
{[%emt 00:05:17]} Bf8 {[%clk 00:50:40]} {[%emt 00:01:32]} 25. Nc2 {[%clk
00:25:54]} {[%emt 00:00:10]} Qc6 {[%clk 00:47:17]} {[%emt 00:03:52]} 26. Nb4
{[%clk 00:21:49]} {[%emt 00:04:36]} Qb5 {[%clk 00:45:09]} {[%emt 00:02:35]} 27.
Qd2 {[%clk 00:19:53]} {[%emt 00:02:28]} Bc5 {[%clk 00:42:28]} {[%emt 00:03:12]}
28. h4 {[%clk 00:15:31]} {[%emt 00:04:52]} Kg7 {[%clk 00:35:13]} {[%emt
00:07:45]} 29. Kh2 {[%clk 00:14:39]} {[%emt 00:01:22]} Bxe3 {[%clk 00:35:02]}
{[%emt 00:00:41]} 30. Qxe3 {[%clk 00:15:07]} {[%emt 00:00:02]} Ra3 {[%clk
00:27:57]} {[%emt 00:07:35]} 31. Nd5 {[%clk 00:09:11]} {[%emt 00:06:26]} Nh5
{[%clk 00:20:29]} {[%emt 00:07:58]} 32. Qc1 {[%clk 00:06:02]} {[%emt 00:03:39]}
Qa4 {[%clk 00:17:07]} {[%emt 00:03:50]} 33. Nb6 {[%clk 00:05:36]} {[%emt
00:00:57]} Qa7 {[%clk 00:15:20]} {[%emt 00:02:16]} 34. Nxc4 {[%clk 00:05:46]}
{[%emt 00:00:21]} Ra2 {[%clk 00:15:39]} {[%emt 00:00:11]} 35. Rg1 {[%clk
00:00:45]} {[%emt 00:05:32]} Qc5 {[%clk 00:10:45]} {[%emt 00:05:24]} 36. Ne3
{[%clk 00:01:01]} {[%emt 00:00:14]} Nf4 {[%clk 00:11:08]} {[%emt 00:00:07]} 37.
Qb1 {[%clk 00:00:40]} {[%emt 00:00:50]} Qe7 {[%clk 00:09:22]} {[%emt 00:02:16]}
38. Kg3 {[%clk 00:00:35]} {[%emt 00:00:34]} Ne2+ {[%clk 00:09:25]} {[%emt
00:00:27]} 39. Kh3 {[%clk 00:00:36]} {[%emt 00:00:30]} Qe6+ {[%clk 00:07:48]}
{[%emt 00:02:07]} 40. Kh2 {[%clk 00:00:54]} {[%emt 00:00:11]} Qf6 {[%clk
00:07:52]} {[%emt 00:00:26]} 0-1